bitfinex-derivatives/quotes_ETHF0:USTF0_20240927
["timestamp","ask_amount","ask_price","bid_price","bid_amount"]
[1727442911805,0.37637,2656.3,2656.2,1.55645037]
[1727442913808,0.37637,2656.3,2656.2,3.11470851]
[1727442914009,0.37637,2656.3,2656.2,1.55825814]
[1727442918714,0.37634,2656.5,2656.3,0.37636]
[1727442918909,3.58413,2656.6,2656.4,1.93430378]
[1727442919104,3.58413,2656.6,2656.4,0.37635]
[1727442919308,3.2078,2656.6,2656.5,1.55781666]
[1727442919512,3.23,2656.8,2656.5,5.69815666]
[1727442919712,3.23,2656.8,2656.3,1.95794321]
[1727442919920,0.37632,2656.7,2656.4,1.93399493]
[1727442920222,0.37628,2657.0,2656.5,1.55764493]
[1727442920417,3.60626,2657.1,2656.7,0.3763]
[1727442920619,3.23,2657.3,2656.8,0.37629]
[1727442920810,3.60624,2657.3,2656.9,0.37628]
[1727442921009,0.37625,2657.2,2656.8,0.37628]
[1727442921217,0.37625,2657.2,2656.9,1.55705917]
[1727442921420,0.37625,2657.2,2656.8,0.37628]
[1727442921727,0.37625,2657.1,2656.9,1.5570062]
[1727442921918,0.37625,2657.1,2656.7,5.54204321]
[1727442921919,0.37625,2657.1,2656.7,5.16574321]
[1727442922120,0.37627,2657.0,2656.8,1.55725508]
[1727442922307,0.3763,2656.8,2656.5,1.95794321]
[1727442922514,0.3763,2656.8,2656.4,5.16574321]
[1727442922819,0.37631,2656.7,2656.5,1.55753263]
[1727442923020,0.37631,2656.7,2656.6,1.55753263]
[1727442923418,0.37631,2656.7,2656.6,1.55835843]
[1727442923621,0.94076,2656.8,2656.2,3.80074212]
[1727442923622,0.37633,2656.6,2656.3,1.95794321]
[1727442923820,0.37633,2656.6,2656.4,1.55840805]
[1727442924018,0.37633,2656.6,2656.5,1.55840805]
[1727442924221,0.37632,2656.6,2656.5,1.55840805]
[1727442924520,0.37632,2656.6,2656.5,5.32240805]
[1727442926813,0.37632,2656.6,2656.5,5.32236947]
[1727442927826,0.37632,2656.7,2656.5,5.32236947]
[1727442928025,0.37632,2656.7,2656.3,1.95794321]
[1727442928220,0.37632,2656.7,2656.4,1.55829451]
[1727442928423,0.37632,2656.6,2656.3,1.95794321]
[1727442928627,0.37632,2656.6,2656.4,1.55816419]
[1727442928825,0.37632,2656.7,2656.5,1.55816419]
[1727442929021,0.37632,2656.7,2656.3,2.33430321]
[1727442929232,3.2078,2656.8,2656.4,3.02925188]
[1727442929413,0.37633,2656.6,2656.4,1.47114794]
[1727442929926,0.37633,2656.6,2656.5,1.55799929]
[1727442930318,0.37633,2656.6,2656.5,4.74473617]
[1727442930719,0.37633,2656.6,2656.5,6.30283704]
[1727442930920,0.37632,2656.7,2656.5,4.74473617]
[1727442931229,3.2078,2656.8,2656.5,0.98073617]
[1727442931423,0.37631,2656.7,2656.5,0.98073617]
[1727442931725,3.2078,2656.8,2656.5,0.98073617]
[1727442931920,0.37631,2656.7,2656.5,0.98073617]
[1727442933420,0.37632,2656.6,2656.5,0.98073617]
[1727442934630,3.2078,2656.8,2656.5,0.98073617]
[1727442934928,0.37632,2656.6,2656.5,0.98073617]
[1727442935321,3.2078,2656.8,2656.5,0.98073617]
[1727442935322,0.37632,2656.7,2656.5,0.98073617]
[1727442935928,0.37632,2656.6,2656.5,0.98073617]
[1727442936128,0.37632,2656.7,2656.5,0.98073617]
[1727442936819,3.2078,2656.8,2656.5,0.98073617]
[1727442937220,0.37632,2656.6,2656.5,0.98073617]
[1727442937425,0.37631,2656.7,2656.5,0.98073617]
[1727442937629,0.37632,2656.6,2656.5,0.98073617]
[1727442938330,0.37632,2656.7,2656.5,0.98073617]
[1727442938632,3.2078,2656.8,2656.5,0.98073617]
[1727442938633,3.5841,2656.8,2656.5,0.98073617]
[1727442939025,0.37631,2656.7,2656.5,0.98073617]
[1727442940025,0.37631,2656.7,2656.6,0.98073617]
[1727442940432,0.37632,2656.7,2656.6,0.98073617]
[1727442941629,3.01914633,2656.8,2656.6,0.98073617]
[1727442941925,0.3763,2656.8,2656.7,0.98073617]
[1727442943234,0.3763,2656.8,2656.7,2.53729215]
[1727442943734,0.3763,2656.8,2656.7,0.98073617]
[1727442944136,0.3763,2656.8,2656.7,2.53769596]
[1727442945229,0.3763,2656.8,2656.7,3.02810773]
[1727442946130,0.3763,2656.8,2656.7,1.55695979]
[1727442946335,0.3763,2656.8,2656.7,2.53984642]
[1727442946630,0.3763,2656.8,2656.7,3.02810773]
[1727442946822,0.3763,2656.8,2656.7,1.55695979]
[1727442946823,1.31704,2656.8,2656.7,1.55695979]
[1727442947335,1.31704,2656.8,2656.7,3.02810773]
[1727442947639,8.69558,2656.8,2656.7,3.02810773]
[1727442947933,8.69558,2656.8,2656.5,1.95794321]
[1727442947934,1.31709,2656.7,2656.6,0.98359972]
[1727442948121,5.48787,2656.7,2656.6,0.98359972]
[1727442948728,9.25187,2656.7,2656.6,0.98359972]
[1727442948928,9.25187,2656.7,2656.4,1.47114794]
[1727442948929,1.31713,2656.6,2656.5,0.98359972]
[1727442949124,4.17081,2656.6,2656.3,1.47114794]
[1727442949333,4.54713,2656.6,2656.5,0.98417875]
[1727442949735,8.31113,2656.6,2656.5,0.98417875]
[1727442950134,8.31077695,2656.6,2656.5,0.98417875]
[1727442950341,8.31077695,2656.6,2656.5,2.54490206]
[1727442951333,8.31077695,2656.6,2656.5,3.03187125]
[1727442951927,8.31077695,2656.6,2656.5,2.54620563]
[1727442952235,8.31077695,2656.6,2656.5,3.03187125]
[1727442952441,8.31077695,2656.6,2656.5,1.56072331]
[1727442953030,0.37634,2656.5,2656.4,1.95794321]
[1727442953227,3.58414,2656.5,2656.4,4.67880141]
[1727442953433,0.37634,2656.5,2656.4,4.67880141]
[1727442954130,4.52499,2656.5,2656.4,6.65098385]
[1727442954330,4.52499,2656.5,2656.4,4.67880141]
[1727442954530,4.52499,2656.5,2656.4,6.65152065]
[1727442954732,4.52499,2656.5,2656.4,6.65151079]
[1727442955235,4.52499,2656.5,2656.4,4.67880141]
[1727442955639,4.52499,2656.5,2656.4,7.12917353]
[1727442956136,4.52499,2656.5,2656.4,4.67880141]
[1727442958026,4.52499,2656.5,2656.4,5.83079815]
[1727442958231,5.46584,2656.5,2656.4,7.80358482]
[1727442958426,5.46584,2656.5,2656.4,4.68245272]
[1727442958733,21.47964,2656.5,2656.4,2.12082064]
[1727442958935,11.89556,2656.4,2656.2,0.62378409]
[1727442959137,1.31743,2656.0,2655.9,1.97278667]
[1727442959341,4.52523,2656.0,2655.9,1.97278667]
[1727442959638,1.31748,2655.9,2655.8,1.97278667]
[1727442959837,4.54748,2655.9,2655.8,5.06438117]
[1727442960339,4.54748,2655.9,2655.8,1.97278667]
[1727442960843,1.31754,2655.8,2655.7,1.97278667]
[1727442961137,0.37645,2655.7,2655.6,1.97278667]
[1727442961329,3.2078,2655.7,2655.6,5.06218475]
[1727442961534,0.3764,2656.1,2655.6,11.27815687]
[1727442961734,7.3787,2656.4,2655.9,1.97075614]
[1727442961929,6.81416,2656.4,2656.0,1.97075614]
[1727442962133,0.37637,2656.3,2656.1,5.05983562]
[1727442962335,0.37637,2656.3,2656.2,3.08863711]
[1727442962538,0.37637,2656.3,2656.2,5.05938117]
[1727442962849,0.37637,2656.3,2656.2,3.08858608]
[1727442963548,0.37637,2656.3,2656.2,5.05881922]
[1727442964538,0.37637,2656.3,2656.2,5.0587261]
[1727442965336,1.31729,2656.3,2656.2,1.97014002]
[1727442965744,1.31729,2656.3,2656.2,5.05854429]
[1727442965945,0.37637,2656.3,2656.2,5.05854429]
[1727442967843,0.37637,2656.3,2656.2,5.05872256]
[1727442968334,1.31729,2656.3,2656.2,5.05893344]
[1727442968539,5.08209,2656.3,2656.2,1.9703509]
[1727442968837,0.37638,2656.2,2656.1,1.9703509]
[1727442969148,3.60638,2656.2,2656.1,1.9703509]
[1727442971040,0.37638,2656.2,2656.1,1.9703509]
[1727442971541,12.6868,2656.5,2656.1,1.9703509]
[1727442971842,0.37629,2656.9,2656.4,6.03451212]
[1727442972043,0.37627,2657.0,2656.6,1.96987147]
[1727442972243,6.4378,2657.1,2656.7,5.05807676]
[1727442972548,6.4378,2657.1,2656.7,5.05807194]
[1727442972549,1.15549,2656.8,2656.7,5.05807194]
[1727442972738,0.7792,2656.8,2656.7,1.96987147]
[1727442972933,0.7792,2656.8,2656.7,3.08820023]
[1727442973338,0.7792,2656.8,2656.7,5.05795812]
[1727442973650,0.7792,2656.8,2656.7,5.05789989]
[1727442973943,0.7792,2656.8,2656.7,5.05786763]
[1727442974248,0.7792,2656.8,2656.7,3.08820023]
[1727442974442,0.7792,2656.8,2656.7,5.05786676]
[1727442974636,0.7792,2656.8,2656.7,3.08820023]
[1727442974838,0.7792,2656.8,2656.7,5.53857235]
[1727442976344,0.7792,2656.8,2656.7,3.08820023]
[1727442976542,0.7792,2656.8,2656.7,5.53857235]
[1727442977637,0.7792,2656.8,2656.7,3.08820023]
[1727442977949,0.7792,2656.8,2656.7,5.53857235]
[1727442978151,0.7792,2656.8,2656.7,3.08820023]
[1727442978652,0.7792,2656.8,2656.7,5.53857235]
[1727442978851,1.15549,2656.8,2656.7,4.63189644]
[1727442979147,2.09623,2656.8,2656.7,4.63189644]
[1727442979350,2.09623,2656.8,2656.7,1.54369621]
[1727442979647,1.15549,2656.8,2656.7,1.54369621]
[1727442979852,1.15549,2656.8,2656.7,3.5130207]
[1727442980052,1.15549,2656.8,2656.7,1.54369621]
[1727442980756,1.15549,2656.8,2656.7,3.5130207]
[1727442981149,3.23,2656.9,2656.7,3.5130207]
[1727442981347,0.37629,2656.9,2656.8,1.54369621]
[1727442981548,3.2078,2657.3,2656.8,9.82227923]
[1727442981763,3.2078,2657.3,2657.0,5.57558449]
[1727442981959,3.2078,2657.3,2657.2,1.96932449]
[1727442982169,3.58402,2657.3,2657.2,1.53948047]
[1727442983565,0.37624,2657.2,2657.1,1.96932449]
[1727442983863,3.58403,2657.3,2657.1,3.5083365]
[1727442984069,3.58403,2657.3,2657.2,1.53901201]
[1727442987075,3.58403,2657.3,2657.2,1.53836676]
[1727442987276,0.37623,2657.3,2657.2,1.53836676]
[1727442989372,3.58402,2657.4,2657.2,1.53836676]
[1727442989578,3.58402,2657.4,2657.0,2.34558449]
[1727442989776,3.58402,2657.4,2657.1,1.53775618]
[1727442989973,3.58402,2657.4,2657.2,1.53775618]
[1727442990173,3.58402,2657.4,2657.0,2.34558449]
[1727442990363,3.58402,2657.4,2657.1,1.53760737]
[1727442990563,3.58402,2657.4,2657.0,2.34558449]
[1727442990768,3.58402,2657.4,2657.1,1.91383115]
[1727442990970,0.37622,2657.3,2657.2,1.53758115]
[1727442992080,0.37622,2657.3,2656.9,2.34559449]
[1727442992376,0.37622,2657.3,2657.0,6.58127862]
[1727442992576,3.2078,2657.4,2657.1,1.53736754]
[1727442992577,0.37624,2657.2,2657.1,1.53736754]
[1727442992769,7.56584,2657.2,2657.1,1.53736754]
[1727442992970,0.37628,2656.9,2656.7,5.17712449]
[1727442993171,6.62524,2657.2,2656.8,1.53733942]
[1727442993172,3.23,2657.1,2656.8,1.53733942]
[1727442993378,0.37627,2657.0,2656.9,1.53733942]
[1727442994190,10.41958,2657.3,2656.9,1.53733942]
[1727442994367,0.37625,2657.1,2657.0,1.53733942]
[1727442994571,10.41958,2657.3,2656.7,5.17712449]
[1727442994773,0.37627,2657.0,2656.8,1.53723286]
[1727442994982,0.37627,2657.0,2656.9,1.53723286]
[1727442996086,10.41958,2657.3,2656.9,1.53723286]
[1727442996087,0.37626,2657.1,2656.9,1.53723286]
[1727442996274,10.41958,2657.3,2657.0,1.53723286]
[1727442996275,0.37623,2657.3,2657.0,1.53723286]
[1727442996479,0.37623,2657.3,2657.1,1.53723286]
[1727442996682,0.37623,2657.3,2656.9,5.57559449]
[1727442996881,0.37623,2657.3,2657.0,1.53714464]
[1727442997085,0.37623,2657.3,2657.1,1.53714464]
[1727442997383,0.37623,2657.3,2656.9,5.57559449]
[1727442997584,3.58401,2657.4,2657.0,3.88264106]
[1727442997775,3.58401,2657.4,2656.9,5.68037212]
[1727442997776,3.2078,2657.4,2657.1,3.88263106]
[1727442997978,3.58401,2657.4,2657.2,1.53706657]
[1727442998176,3.58401,2657.4,2657.3,1.53706657]
[1727442999179,3.58401,2657.4,2657.0,2.34558449]
[1727442999378,3.58401,2657.4,2657.1,1.53676281]
[1727442999577,7.18947,2657.6,2657.2,1.53676281]
[1727442999578,3.584,2657.5,2657.2,1.53676281]
[1727442999776,6.249,2657.7,2657.3,1.53676281]
[1727442999981,6.249,2657.7,2657.1,5.19932449]
[1727443000179,6.249,2657.7,2657.2,1.53667832]
[1727443000383,0.3762,2657.5,2657.3,1.53667832]
[1727443000679,0.37619,2657.6,2657.4,1.5365279]
[1727443000977,0.37619,2657.6,2657.2,5.55335449]
[1727443001177,0.37619,2657.6,2657.3,1.53651515]
[1727443001377,0.37619,2657.6,2657.4,1.53651515]
[1727443001579,0.3762,2657.5,2657.2,3.2078]
[1727443001778,0.3762,2657.5,2657.3,1.53638091]
[1727443001983,0.3762,2657.5,2657.4,1.53638091]
[1727443002483,0.3762,2657.5,2657.2,3.2078]
[1727443002679,0.3762,2657.5,2657.3,1.53629087]
[1727443002884,0.3762,2657.5,2657.4,1.53627595]
[1727443003188,0.3762,2657.5,2657.2,3.2078]
[1727443003383,0.3762,2657.5,2657.3,1.53618837]
[1727443003580,0.37621,2657.4,2657.2,3.2078]
[1727443003781,0.37621,2657.4,2657.3,1.53619191]
[1727443006587,0.37621,2657.4,2656.9,5.17712449]
[1727443006588,0.94064,2657.1,2656.9,5.17712449]
[1727443006791,0.37627,2657.0,2656.9,5.17712449]
[1727443006981,0.37627,2657.0,2656.9,4.74477412]
[1727443007187,0.37627,2657.0,2656.9,9.78935824]
[1727443007381,0.37627,2657.0,2656.9,6.71409861]
[1727443007889,0.37627,2657.0,2656.9,4.74477412]
[1727443008091,0.37627,2657.0,2656.9,6.71409861]
[1727443009087,0.37627,2657.0,2656.9,9.7914529]
[1727443009299,0.37627,2657.0,2656.9,10.47910855]
[1727443009492,0.37627,2657.0,2656.9,6.71510855]
[1727443009686,0.37627,2657.0,2656.9,10.47910855]
[1727443009890,0.37627,2657.0,2656.9,13.55545982]
[1727443010087,10.41953,2657.4,2656.9,7.82213533]
[1727443010285,0.37627,2657.0,2656.9,3.2078]
[1727443010488,0.37627,2657.0,2656.9,7.82051404]
[1727443010791,0.37627,2657.0,2656.9,11.58451404]
[1727443011391,1.31694,2657.0,2656.9,4.61271404]
[1727443011589,0.37628,2656.9,2656.8,2.45037212]
[1727443011790,0.37628,2656.9,2656.8,4.60896135]
[1727443012191,0.37628,2656.9,2656.8,7.05933347]
[1727443012696,1.31699,2656.9,2656.8,7.05933347]
[1727443012994,8.5067,2656.9,2656.8,6.57731827]
[1727443013197,8.5067,2656.9,2656.8,1.53632045]
[1727443014197,7.56599,2656.9,2656.8,1.53632045]
[1727443015503,6.62528,2656.9,2656.8,1.53632045]
[1727443015687,6.62528,2656.9,2656.8,3.50467737]
[1727443015888,6.62528,2656.9,2656.8,6.58003964]
[1727443016082,6.62528,2656.9,2656.8,4.61168272]
[1727443016488,0.37629,2656.8,2656.7,2.45037212]
[1727443016689,0.37629,2656.8,2656.7,7.0651506]
[1727443017594,0.37629,2656.8,2656.7,4.61477848]
[1727443018592,0.37627,2657.0,2656.7,7.0651506]
[1727443018891,0.37627,2657.0,2656.8,7.0651506]
[1727443019192,0.37625,2657.1,2656.9,4.61477848]
[1727443019393,0.37625,2657.1,2657.0,7.07859946]
[1727443019591,0.37625,2657.1,2657.0,4.61477848]
[1727443020595,0.37625,2657.2,2657.0,4.61477848]
[1727443020892,0.37621,2657.4,2657.1,7.07859946]
[1727443021091,0.37621,2657.4,2657.2,8.61868982]
[1727443021293,0.37621,2657.4,2657.3,4.61656786]
[1727443021892,11.51774,2657.4,2657.3,3.50998724]
[1727443022101,11.51774,2657.4,2657.3,1.53885595]
[1727443022290,12.45827,2657.4,2657.3,1.53885595]
[1727443022490,18.45827,2657.4,2657.3,1.53885595]
[1727443024492,24.70727,2657.4,2657.3,4.39709433]
[1727443024892,24.70727,2657.4,2657.3,2.91845595]
[1727443025796,23.76674,2657.4,2657.3,1.3796]
[1727443026098,23.76674,2657.4,2657.3,4.39734772]
[1727443026493,24.70727,2657.4,2657.3,4.39734772]
[1727443026690,24.70727,2657.4,2657.3,2.91870934]
[1727443027198,24.70727,2657.4,2657.3,4.39734772]
[1727443027597,24.70727,2657.4,2657.3,2.91870934]
[1727443028193,24.70727,2657.4,2657.3,4.39734772]
[1727443028498,18.70727,2657.4,2657.3,4.39734772]
[1727443028700,17.76674,2657.4,2657.3,4.39734772]
[1727443029703,18.70727,2657.4,2657.3,4.39734772]
[1727443029898,17.76674,2657.4,2657.3,4.39734772]
[1727443031100,6.4378,2657.7,2657.3,2.91870934]
[1727443031292,6.4378,2657.7,2657.4,6.58386735]
[1727443031293,0.37618,2657.6,2657.4,6.58386735]
[1727443031493,0.37618,2657.6,2657.5,3.51024063]
[1727443031702,0.37618,2657.6,2657.5,6.58368269]
[1727443032301,0.37618,2657.6,2657.5,3.51024063]
[1727443032689,0.37618,2657.6,2657.5,6.5836314]
[1727443033400,0.37618,2657.6,2657.5,6.58358532]
[1727443033602,0.37618,2657.6,2657.5,3.51024063]
[1727443034204,1.31664,2657.6,2657.5,3.51024063]
[1727443034607,0.37618,2657.6,2657.5,3.51024063]
[1727443035607,0.37618,2657.6,2657.5,3.50769664]
[1727443036596,1.31664,2657.6,2657.5,3.50769664]
[1727443037201,1.31664,2657.6,2657.5,6.58079963]
[1727443038203,0.37618,2657.6,2657.5,6.58079963]
[1727443038404,0.37618,2657.6,2657.5,4.60966834]
[1727443038599,0.37618,2657.6,2657.5,6.58062893]
[1727443038800,0.37618,2657.6,2657.5,4.60966834]
[1727443039908,1.31664,2657.6,2657.5,4.60966834]
[1727443040405,8.5061,2657.6,2657.5,6.58054328]
[1727443040603,8.5061,2657.6,2657.5,3.01472073]
[1727443040803,12.2693,2657.6,2657.5,3.01472073]
[1727443041403,12.2693,2657.6,2657.5,1.53642084]
[1727443042611,12.2693,2657.6,2657.5,3.01472073]
[1727443042910,12.2693,2657.6,2657.5,1.53642084]
[1727443043114,8.50617,2657.5,2657.4,1.47829989]
[1727443043404,18.70717,2657.5,2657.4,1.53651144]
[1727443043597,24.70717,2657.5,2657.4,1.53651144]
[1727443044801,8.50627,2657.4,2657.3,2.85789989]
[1727443045001,8.50627,2657.4,2657.3,1.3796]
[1727443045002,12.26947,2657.4,2657.3,1.3796]
[1727443045203,18.26947,2657.4,2657.3,1.3796]
[1727443045916,18.26947,2657.4,2657.3,0.49896]
[1727443046213,2.2577,2656.9,2656.8,1.97087494]
[1727443046408,7.37851,2656.9,2656.5,1.97087494]
[1727443046606,7.296,2657.1,2656.4,1.97087494]
[1727443046607,1.31719,2656.5,2656.4,1.97087494]
[1727443046807,1.31719,2656.5,2656.4,1.53641877]
[1727443047000,5.08199,2656.5,2656.4,1.53641877]
[1727443047515,5.52959,2656.5,2656.4,1.53641877]
[1727443048113,5.98399,2656.5,2656.4,1.53641877]
[1727443048907,5.04314,2656.5,2656.4,1.53641877]
[1727443049310,1.27834,2656.5,2656.4,1.53641877]
[1727443049512,5.98399,2656.5,2656.4,1.53641877]
[1727443049715,5.04314,2656.5,2656.4,1.53641877]
[1727443050108,0.37634,2656.5,2656.4,1.53641877]
[1727443050920,0.37633,2656.6,2656.4,1.53641877]
[1727443051218,0.37633,2656.6,2656.5,1.53641877]
[1727443053021,7.37849,2657.0,2656.5,1.53641877]
[1727443053227,0.3763,2656.8,2656.6,6.57004393]
[1727443053435,0.3763,2656.8,2656.7,1.53641877]
[1727443053624,6.4378,2657.0,2656.7,2.00271877]
[1727443053823,6.4378,2657.0,2656.8,2.02621877]
[1727443054025,6.4378,2657.0,2656.8,0.4898]
[1727443054326,0.37628,2656.9,2656.8,0.4898]
[1727443054526,0.37628,2656.9,2656.8,2.02115416]
[1727443054931,4.45425,2657.2,2656.8,0.4898]
[1727443055122,3.2078,2657.3,2656.9,6.5646059]
[1727443055328,0.37627,2657.0,2656.9,1.97087494]
[1727443055532,0.37626,2657.1,2656.9,1.53123175]
[1727443055728,0.37626,2657.1,2657.0,1.53123175]
[1727443056320,6.62526,2657.1,2657.0,1.53123175]
[1727443059323,7.07506,2657.1,2657.0,1.53123175]
[1727443059535,8.4919,2657.1,2657.0,1.53123175]
[1727443059736,8.4919,2657.1,2656.8,0.4898]
[1727443059737,0.37628,2656.9,2656.8,0.4898]
[1727443059932,6.9122,2657.0,2656.8,2.02119597]
[1727443060127,0.37628,2656.9,2656.8,0.4898]
[1727443060334,0.37628,2656.9,2656.8,2.0211803]
[1727443061536,0.37628,2656.9,2656.8,3.99205524]
[1727443061924,0.37628,2656.9,2656.8,2.0211803]
[1727443063025,0.37628,2656.9,2656.8,7.05177081]
[1727443064732,0.37628,2656.9,2656.8,7.05027177]
[1727443064927,0.37628,2656.9,2656.8,5.07939683]
[1727443065340,0.37628,2656.9,2656.8,7.04814214]
[1727443069641,0.37628,2656.9,2656.8,7.04855962]
[1727443070646,3.01933965,2657.0,2656.8,7.04855962]
[1727443070849,3.39560965,2657.0,2656.9,1.53000477]
[1727443071638,0.37626,2657.1,2656.9,1.53000477]
[1727443071936,0.37625,2657.2,2657.0,3.49875008]
[1727443072143,0.37625,2657.2,2657.1,3.49875008]
[1727443072344,0.37625,2657.2,2657.1,3.95495008]
[1727443072639,6.4378,2657.4,2657.1,7.00989026]
[1727443072839,0.37623,2657.3,2657.2,3.49875008]
[1727443073036,6.81402,2657.4,2657.2,3.49875008]
[1727443073238,6.81402,2657.4,2657.3,1.98510477]
[1727443074644,6.81402,2657.4,2657.3,1.98245335]
[1727443076445,13.06302,2657.4,2657.3,1.98245335]
[1727443077245,9.85522,2657.4,2657.3,1.98245335]
[1727443077543,9.479,2657.4,2657.3,1.98245335]
[1727443077744,3.2078,2657.5,2657.3,1.98245335]
[1727443077949,0.37621,2657.4,2657.3,0.4551]
[1727443078143,0.37621,2657.4,2657.3,1.98244932]
[1727443078949,4.54674,2657.4,2657.3,1.52734932]
[1727443079447,0.37622,2657.3,2657.2,1.96874531]
[1727443079647,0.37622,2657.3,2657.2,3.49622815]
[1727443080153,0.37622,2657.3,2657.2,6.55121166]
[1727443080648,0.37622,2657.3,2657.2,6.55126667]
[1727443080953,0.37622,2657.3,2657.2,3.49622815]
[1727443081548,0.37622,2657.3,2657.2,1.52748284]
[1727443081750,0.37622,2657.3,2657.2,3.49622815]
[1727443082147,1.31678,2657.3,2657.2,3.49622815]
[1727443082350,1.80158,2657.3,2657.2,1.52748284]
[1727443082848,8.05058,2657.3,2657.2,1.52748284]
[1727443083042,8.05058,2657.3,2657.2,0.98462335]
[1727443083443,8.05058,2657.3,2657.2,2.51249942]
[1727443083651,8.05058,2657.3,2657.2,2.51257499]
[1727443084043,8.05058,2657.3,2657.2,1.52787607]
[1727443084245,0.37625,2657.2,2657.0,1.96874531]
[1727443084556,1.33025,2657.2,2657.1,3.49666948]
[1727443085848,0.4708,2657.2,2657.1,3.49666948]
[1727443086156,0.37624,2657.2,2657.1,6.55314801]
[1727443086648,6.249,2657.3,2657.1,6.55314801]
[1727443086953,6.62517,2657.7,2657.3,0.37622]
[1727443087145,0.37618,2657.6,2657.5,1.96957528]
[1727443087453,6.249,2657.7,2657.5,4.58440355]
[1727443087658,6.249,2657.7,2657.6,3.49701744]
[1727443087854,3.691,2657.9,2657.6,4.58360254]
[1727443088047,0.37615,2657.8,2657.7,6.55261715]
[1727443088345,10.79554,2657.8,2657.7,1.52792417]
[1727443089249,0.37618,2657.6,2657.5,1.96903072]
[1727443089455,3.58398,2657.6,2657.5,3.49664043]
[1727443089954,3.58398,2657.6,2657.5,6.55140556]
[1727443090359,3.58398,2657.6,2657.5,3.49664043]
[1727443091649,15.4272,2657.6,2657.5,1.52760971]
[1727443091959,0.37624,2657.2,2657.1,2.45883072]
[1727443092160,4.54684,2657.2,2657.1,1.52710112]
[1727443092455,4.54684,2657.2,2657.1,0.98422601]
[1727443092456,15.49964,2657.2,2657.1,0.98422601]
[1727443092649,15.98494,2657.2,2657.1,0.98422601]
[1727443092846,7.56589,2657.1,2657.0,0.98422601]
[1727443093068,7.56594,2657.0,2656.9,0.98422601]
[1727443093358,14.00374,2657.0,2656.9,2.51165194]
[1727443093555,14.00374,2657.0,2656.9,0.98422601]
[1727443093556,14.94441,2657.0,2656.9,0.98422601]
[1727443094555,14.94441,2657.0,2656.9,2.51218662]
[1727443095560,14.94441,2657.0,2656.9,1.52796061]
[1727443095861,14.94441,2657.0,2656.8,0.98497663]
[1727443095862,7.56599,2656.9,2656.8,0.98497663]
[1727443096050,14.55999,2656.9,2656.8,0.98497663]
[1727443096250,1.31703,2656.8,2656.7,0.98497663]
[1727443096458,4.54703,2656.8,2656.7,0.98497663]
[1727443096759,2.25787,2656.7,2656.6,0.98497663]
[1727443096961,9.63657,2656.7,2656.6,0.98497663]
[1727443097156,19.40057,2656.7,2656.6,0.98497663]
[1727443098464,1.31713,2656.6,2656.5,0.98497663]
[1727443098660,5.04243,2656.6,2656.5,2.51322405]
[1727443098860,8.80643,2656.6,2656.5,2.51322549]
[1727443099852,8.80643,2656.6,2656.5,0.98497663]
[1727443100057,8.80643,2656.6,2656.5,2.51297579]
[1727443100464,8.80643,2656.6,2656.5,0.98497663]
[1727443101663,12.01423,2656.6,2656.5,0.98497663]
[1727443103169,0.4857,2656.7,2656.5,1.5272363]
[1727443103367,0.86201,2656.7,2656.6,1.46150106]
[1727443103570,0.86201,2656.7,2656.6,2.98856515]
[1727443103867,0.86201,2656.7,2656.6,2.98854066]
[1727443104265,3.60631,2656.8,2656.6,2.98855603]
[1727443104469,3.2078,2656.9,2656.7,0.98430106]
[1727443104766,2.64282702,2656.9,2656.8,1.52686301]
[1727443105266,3.60627,2657.0,2656.8,1.52686301]
[1727443105468,0.37626,2657.1,2656.9,1.52686301]
[1727443105772,3.58401,2657.4,2657.0,1.52686301]
[1727443105956,3.58401,2657.4,2657.3,0.98386958]
[1727443106162,3.58401,2657.4,2657.3,1.47581928]
[1727443106361,3.58401,2657.4,2657.3,1.52275863]
[1727443106572,3.58401,2657.4,2657.3,2.99857791]
[1727443106774,6.81401,2657.4,2657.3,0.98387675]
[1727443107170,10.57721,2657.4,2657.3,0.98387675]
[1727443107668,10.57721,2657.4,2657.2,0.98387675]
[1727443107669,0.37622,2657.3,2657.2,0.98387675]
[1727443107863,0.86062,2657.3,2657.2,2.99859012]
[1727443108266,0.86062,2657.3,2657.2,2.50669889]
[1727443108570,0.86062,2657.3,2657.2,2.99857304]
[1727443108773,0.86062,2657.3,2657.2,1.52275376]
[1727443109160,3.23,2657.4,2657.2,2.99857304]
[1727443109468,0.3762,2657.5,2657.3,2.99857304]
[1727443109771,0.37619,2657.5,2657.4,3.46497641]
[1727443110165,3.60619,2657.6,2657.4,3.46497641]
[1727443110367,3.58397,2657.7,2657.5,0.98377833]
[1727443110560,0.9575,2657.9,2657.6,0.98377833]
[1727443110561,0.5024,2657.9,2657.6,0.98377833]
[1727443110768,0.37617,2657.7,2657.6,1.99371928]
[1727443110965,0.37617,2657.7,2657.6,3.02406826]
[1727443111260,0.37617,2657.7,2657.6,3.02407833]
[1727443111464,0.37617,2657.7,2657.6,1.50155215]
[1727443111667,0.37617,2657.7,2657.6,3.02396251]
[1727443112473,0.37617,2657.7,2657.6,3.02390818]
[1727443113673,0.37617,2657.7,2657.6,1.50149782]
[1727443113869,0.37617,2657.7,2657.6,3.02366125]
[1727443114063,0.37617,2657.7,2657.6,2.04006343]
[1727443115167,0.37617,2657.7,2657.6,3.02333412]
[1727443115468,0.37617,2657.7,2657.6,3.02332636]
[1727443115672,0.37614,2657.9,2657.6,3.51577367]
[1727443115972,0.37614,2657.9,2657.8,0.98314152]
[1727443116574,0.37612,2658.0,2657.8,3.00993171]
[1727443116782,0.37612,2658.0,2657.8,1.48914152]
[1727443117166,3.60612,2658.1,2657.8,1.48914152]
[1727443117476,3.23,2658.1,2657.9,0.98314152]
[1727443117776,3.60611,2658.1,2658.0,2.50330942]
[1727443117971,0.3761,2658.2,2658.0,2.50330942]
[1727443118174,0.3761,2658.2,2658.1,1.50844713]
[1727443118868,6.249,2658.5,2658.1,1.50844713]
[1727443119070,0.37603,2658.7,2658.3,0.98214713]
[1727443119280,3.2078,2658.9,2658.4,0.98214713]
[1727443119465,3.5838,2658.9,2658.5,1.46974713]
[1727443119667,0.37601,2658.8,2658.6,3.02647852]
[1727443119974,0.37601,2658.8,2658.7,0.98214713]
[1727443120167,0.37601,2658.8,2658.6,1.50844713]